fUST/lending_fUST_20250429
["ID","MTS","AMOUNT","RATE_DAILY","PERIOD"]
[359269300,1745880739928,-400.0,0.00020534,2]
[359269301,1745880739952,-400.0,0.00020534,2]
[359269302,1745880739973,-400.0,0.00020534,2]
[359269303,1745880739994,-406.58,0.00020534,2]
[359269304,1745880740015,-400.0,0.00020534,2]
[359269305,1745880740035,-400.0,0.00020534,2]
[359269306,1745880740056,-414.1,0.00020534,2]
[359269307,1745880740076,-400.0,0.00020534,2]
[359269308,1745880740097,-790.68,0.00020534,2]
[359269309,1745880740126,-400.0,0.00020534,2]
[359269310,1745880740148,-604.69,0.00020534,2]
[359269311,1745880740171,-400.0,0.00020534,2]
[359269312,1745880740194,-400.0,0.00020534,2]
[359269313,1745880740219,-400.0,0.00020534,2]
[359269314,1745880740241,-400.0,0.00020534,2]
[359269315,1745880740263,-400.0,0.00020534,2]
[359269316,1745880740286,-400.0,0.00020534,2]
[359269317,1745880740307,-400.0,0.00020534,2]
[359269318,1745880740329,-1554.96,0.00020535,2]
[359269319,1745880740352,-1162.37,0.00020535,2]
[359269320,1745880740373,-400.0,0.00020535,2]
[359269321,1745880740396,-2301.26,0.00020535,2]
[359269322,1745880740417,-400.0,0.00020535,2]
[359269323,1745880740438,-400.0,0.00020535,2]
[359269324,1745880740460,-822.24,0.00020535,2]
[359269325,1745880740482,-400.0,0.00020535,2]
[359269326,1745880740505,-2038.37,0.00020535,2]
[359269327,1745880740526,-534.36,0.00020535,2]
[359269328,1745880740548,-1121.81,0.00020535,2]
[359269329,1745880740570,-400.0,0.00020535,2]
[359269330,1745880740592,-400.0,0.00020535,2]
[359269331,1745880740613,-642.36,0.00020535,2]
[359269332,1745880740635,-682.14,0.00020535,2]
[359269333,1745880740657,-1315.42,0.00020535,2]
[359269334,1745880740679,-400.0,0.00020535,2]
[359269335,1745880740702,-400.0,0.00020535,2]
[359269336,1745880740723,-400.0,0.00020535,2]
[359269337,1745880740745,-400.0,0.00020535,2]
[359269338,1745880740767,-400.0,0.00020535,2]
[359269339,1745880740789,-772.19,0.00020535,2]
[359269340,1745880740811,-1379.56,0.00020535,2]
[359269341,1745880740833,-1674.87,0.00020535,2]
[359269342,1745880740854,-400.0,0.00020535,2]
[359269343,1745880740877,-452.84,0.00020535,2]
[359269344,1745880740899,-422.7349726,0.00020537,2]
[359269345,1745880740920,-400.0,0.00020537,2]
[359269346,1745880740940,-400.0,0.00020537,2]
[359269347,1745880740961,-400.0,0.00020537,2]
[359269348,1745880740982,-400.0,0.00020537,2]
[359269349,1745880741003,-400.0,0.00020539,2]
[359269350,1745880741026,-374.60665021,0.00020539,2]
[359269363,1745880959853,-160.0,0.00018799,2]
[359269364,1745880959879,-29.0,0.000188,2]
[359269459,1745881832335,-544.64955648,0.000188,2]
[359269461,1745881832344,-897.34283927,0.000188,2]
[359269463,1745881832356,-102.65716073,0.000188,2]
[359269465,1745881832367,-212.67329887,0.000188,2]
[359269467,1745881832376,-150.0,0.000189,2]
[359269469,1745881832386,-516.837945,0.00019,2]
[359269471,1745881832395,-337.0966198,0.00019128,2]
[359269473,1745881832404,-343.3210189,0.00019296,2]
[359269475,1745881832414,-250.0,0.00019484,2]
[359269477,1745881832423,-306.07151977,0.00020059,2]
[359269479,1745881832432,-3215.02177544,0.00020065,2]
[359269481,1745881832442,-300.0,0.00020065,2]
[359269483,1745881832452,-300.0,0.00020066,2]
[359269485,1745881832461,-978.03116105,0.00020067,2]
[359269487,1745881832470,-1365.76,0.00020154,3]
[359269489,1745881832480,-682.88,0.00020154,3]
[359269491,1745881832489,-170.72,0.00020156,3]
[359269493,1745881832499,-512.2,0.00020156,3]
[359269495,1745881832509,-341.44,0.00020157,3]
[359269497,1745881832519,-195.6214044,0.00020161,2]
[359269499,1745881832528,-500.0,0.00020161,2]
[359269501,1745881832537,-500.0,0.00020161,2]
[359269503,1745881832547,-348.16872359,0.00020161,2]
[359269505,1745881832556,-400.0,0.00020162,2]
[359269507,1745881832565,-400.0,0.00020162,2]
[359269509,1745881832574,-400.0,0.00020162,2]
[359269511,1745881832583,-166.17522551,0.00020162,2]
[359269513,1745881832593,-656.42,0.00020162,2]
[359269515,1745881832602,-400.0,0.00020162,2]
[359269517,1745881832611,-1074.84,0.00020162,2]
[359269519,1745881832620,-894.15,0.00020162,2]
[359269521,1745881832630,-500.0,0.00020162,2]
[359269523,1745881832640,-2013.33,0.00020162,2]
[359269526,1745881832649,-533.5516546,0.00020162,2]
[359269529,1745881832658,-500.0,0.00020162,2]
[359269532,1745881832668,-389.57554645,0.00020162,2]
[359269535,1745881832681,-447.60885252,0.00020163,2]
[359269537,1745881832691,-400.0,0.00020163,2]
[359269540,1745881832700,-400.0,0.00020165,2]
[359269543,1745881832710,-2760.89,0.00020165,2]
[359269546,1745881832719,-400.0,0.00020165,2]
[359269549,1745881832729,-4178.27,0.00020165,2]
[359269551,1745881832739,-400.0,0.00020165,2]
[359269553,1745881832748,-400.0,0.00020165,2]
[359269555,1745881832758,-421.36,0.00020165,2]
[359269556,1745881832768,-1246.38,0.00020165,2]
[359269559,1745881832778,-5908.82,0.00020165,2]
[359269560,1745881832787,-400.0,0.00020165,2]
[359269563,1745881832797,-1081.33,0.00020165,2]
[359269564,1745881832806,-400.0,0.00020165,2]
[359269567,1745881832815,-6820.57,0.00020165,2]
[359269568,1745881832825,-1232.17,0.00020165,2]
[359269571,1745881832835,-228.4782454,0.00020165,2]
[359269572,1745881832844,-400.0,0.00020165,2]
[359269574,1745881832854,-400.0,0.00020165,2]
[359269576,1745881832863,-2166.39,0.00020165,2]
[359269578,1745881832873,-400.0,0.00020165,2]
[359269580,1745881832882,-851.76,0.00020165,2]
[359269582,1745881832893,-400.0,0.00020165,2]
[359269584,1745881832902,-2216.81,0.00020165,2]
[359269586,1745881832911,-400.0,0.00020165,2]
[359269588,1745881832920,-637.65,0.00020165,2]
[359269590,1745881832930,-400.0,0.00020166,2]
[359269592,1745881832940,-400.0,0.00020166,2]
[359269594,1745881832950,-400.0,0.00020166,2]
[359269596,1745881832959,-400.0,0.00020166,2]
[359269597,1745881832968,-400.0,0.00020166,2]
[359269598,1745881832977,-400.0,0.00020166,2]
[359269599,1745881832986,-400.0,0.00020166,2]
[359269600,1745881832995,-400.0,0.00020166,2]
[359269601,1745881833004,-400.0,0.00020166,2]
[359269602,1745881833014,-400.0,0.00020166,2]
[359269603,1745881833023,-400.0,0.00020166,2]
[359269604,1745881833032,-400.0,0.00020166,2]
[359269605,1745881833041,-400.0,0.00020166,2]
[359269606,1745881833049,-400.0,0.00020166,2]
[359269607,1745881833058,-400.0,0.00020166,2]
[359269608,1745881833067,-400.0,0.00020166,2]
[359269609,1745881833076,-400.0,0.00020166,2]
[359269610,1745881833086,-400.0,0.00020166,2]
[359269611,1745881833095,-400.0,0.00020166,2]
[359269612,1745881833104,-400.0,0.00020166,2]
[359269613,1745881833113,-357.04926952,0.00020166,2]
[359269614,1745881833122,-400.0,0.00020166,2]
[359269615,1745881833132,-500.0,0.00020166,2]
[359269616,1745881833141,-400.0,0.00020166,2]
[359269617,1745881833150,-200.0,0.00020166,2]
[359269618,1745881833159,-400.0,0.00020166,2]
[359269619,1745881833168,-731.7,0.00020166,2]
[359269620,1745881833177,-400.0,0.00020166,2]
[359269621,1745881833187,-500.0,0.00020166,2]
[359269622,1745881833195,-400.0,0.00020166,2]
[359269623,1745881833204,-555.0,0.00020166,2]
[359269624,1745881833214,-400.0,0.00020166,2]
[359269625,1745881833223,-500.0,0.00020166,2]
[359269626,1745881833232,-400.0,0.00020166,2]
[359269628,1745881833241,-400.0,0.00020166,2]
[359269629,1745881833251,-500.0,0.00020166,2]
[359269631,1745881833260,-835.12,0.00020166,2]
[359269633,1745881833269,-400.0,0.00020166,2]
[359269635,1745881833279,-400.0,0.00020166,2]
[359269637,1745881833288,-400.0,0.00020166,2]
[359269639,1745881833297,-400.0,0.00020166,2]
[359269641,1745881833307,-400.0,0.00020166,2]
[359269643,1745881833316,-500.0,0.00020166,2]
[359269645,1745881833326,-400.0,0.00020166,2]
[359269647,1745881833335,-400.0,0.00020166,2]
[359269649,1745881833345,-500.0,0.00020166,2]
[359269651,1745881833354,-173.35037295,0.00020166,2]
[359269653,1745881833364,-400.0,0.00020166,2]
[359269655,1745881833374,-400.0,0.00020166,2]
[359269657,1745881833386,-400.0,0.00020166,2]
[359269659,1745881833396,-400.0,0.00020166,2]
[359269660,1745881833406,-400.0,0.00020166,2]
[359269662,1745881833416,-400.0,0.00020166,2]
[359269663,1745881833425,-400.0,0.00020166,2]
[359269665,1745881833435,-500.0,0.00020166,2]
[359269667,1745881833445,-400.0,0.00020166,2]
[359269669,1745881833455,-400.0,0.00020166,2]
[359269670,1745881833464,-500.0,0.00020166,2]
[359269671,1745881833473,-400.0,0.00020166,2]
[359269672,1745881833483,-500.0,0.00020166,2]
[359269673,1745881833492,-400.0,0.00020166,2]
[359269674,1745881833502,-400.0,0.00020166,2]
[359269675,1745881833511,-400.0,0.00020166,2]
[359269676,1745881833521,-500.0,0.00020166,2]
[359269677,1745881833530,-400.0,0.00020166,2]
[359269678,1745881833540,-408.77,0.00020166,2]
[359269679,1745881833549,-400.0,0.00020166,2]
[359269680,1745881833559,-400.0,0.00020166,2]
[359269681,1745881833568,-400.0,0.00020166,2]
[359269682,1745881833579,-400.0,0.00020166,2]
[359269683,1745881833588,-400.0,0.00020166,2]
[359269684,1745881833598,-400.0,0.00020166,2]
[359269685,1745881833608,-400.0,0.00020166,2]
[359269686,1745881833617,-400.0,0.00020166,2]
[359269687,1745881833627,-400.0,0.00020166,2]
[359269688,1745881833637,-400.0,0.00020166,2]
[359269689,1745881833646,-400.0,0.00020166,2]
[359269690,1745881833656,-400.0,0.00020166,2]
[359269691,1745881833665,-500.0,0.00020166,2]
[359269692,1745881833677,-400.0,0.00020166,2]
[359269693,1745881833687,-400.0,0.00020166,2]
[359269694,1745881833696,-400.0,0.00020166,2]
[359269695,1745881833706,-400.0,0.00020166,2]
[359269696,1745881833716,-400.0,0.00020166,2]
[359269697,1745881833725,-400.0,0.00020166,2]
[359269698,1745881833735,-400.0,0.00020166,2]
[359269699,1745881833744,-435.19,0.00020166,2]
[359269700,1745881833754,-506.47408163,0.00020166,2]
[359269701,1745881833763,-400.0,0.00020166,2]
[359269702,1745881833773,-500.0,0.00020166,2]
[359269703,1745881833783,-400.0,0.00020166,2]
[359269704,1745881833793,-400.0,0.00020166,2]
[359269705,1745881833803,-400.0,0.00020166,2]
[359269706,1745881833812,-400.0,0.00020166,2]
[359269707,1745881833821,-400.0,0.00020166,2]
[359269708,1745881833831,-400.0,0.00020166,2]
[359269709,1745881833840,-500.0,0.00020166,2]
[359269710,1745881833850,-442.09,0.00020166,2]
[359269711,1745881833859,-500.0,0.00020166,2]
[359269712,1745881833869,-400.0,0.00020166,2]
[359269713,1745881833879,-400.0,0.00020166,2]
[359269714,1745881833890,-1007.57,0.00020166,2]
[359269715,1745881833900,-400.0,0.00020166,2]
[359269716,1745881834096,-400.0,0.00020166,2]
[359269717,1745881834106,-400.0,0.00020166,2]
[359269718,1745881834116,-400.0,0.00020166,2]
[359269719,1745881834125,-400.0,0.00020166,2]
[359269720,1745881834135,-891.46,0.00020166,2]
[359269721,1745881834145,-400.0,0.00020166,2]
[359269722,1745881834155,-400.0,0.00020166,2]
[359269723,1745881834165,-400.0,0.00020166,2]
[359269724,1745881834174,-400.0,0.00020166,2]
[359269725,1745881834184,-400.0,0.00020166,2]
[359269726,1745881834194,-400.0,0.00020166,2]
[359269727,1745881834203,-400.0,0.00020166,2]
[359269728,1745881834213,-554.3,0.00020166,2]
[359269729,1745881834222,-400.0,0.00020166,2]
[359269730,1745881834231,-400.0,0.00020166,2]
[359269731,1745881834240,-400.0,0.00020166,2]
[359269732,1745881834250,-400.0,0.00020166,2]
[359269733,1745881834259,-400.0,0.00020166,2]
[359269734,1745881834269,-400.0,0.00020166,2]
[359269735,1745881834279,-400.0,0.00020166,2]
[359269736,1745881834288,-400.0,0.00020166,2]
[359269737,1745881834298,-400.0,0.00020166,2]
[359269738,1745881834307,-459.71,0.00020166,2]
[359269739,1745881834317,-500.0,0.00020166,2]
[359269740,1745881834327,-400.0,0.00020166,2]
[359269741,1745881834336,-500.0,0.00020166,2]
[359269742,1745881834346,-500.0,0.00020166,2]
[359269743,1745881834355,-400.0,0.00020166,2]
[359269744,1745881834364,-453.83,0.00020166,2]
[359269745,1745881834373,-400.0,0.00020166,2]
[359269746,1745881834383,-543.56,0.00020166,2]
[359269747,1745881834393,-500.0,0.00020166,2]
[359269748,1745881834402,-400.0,0.00020166,2]
[359269749,1745881834412,-400.0,0.00020166,2]
[359269750,1745881834421,-400.0,0.00020166,2]
[359269751,1745881834432,-1218.87,0.00020166,2]
[359269752,1745881834442,-507.03169076,0.00020166,2]
[359269753,1745881834452,-500.0,0.00020166,2]
[359269754,1745881834462,-518.65106413,0.00020166,2]
[359269755,1745881834471,-759.39,0.00020166,2]
[359269756,1745881834481,-374.30061725,0.00020166,2]
[359269757,1745881834491,-400.0,0.00020166,2]
[359269758,1745881834500,-500.0,0.00020166,2]
[359269759,1745881834510,-508.77237706,0.00020166,2]
[359269760,1745881834520,-400.0,0.00020166,2]
[359269761,1745881834529,-500.0,0.00020166,2]
[359269762,1745881834539,-500.0,0.00020166,2]
[359269763,1745881834548,-791.97,0.00020166,2]
[359269764,1745881834557,-1166.76,0.00020166,2]
[359269765,1745881834567,-400.0,0.00020166,2]
[359269766,1745881834576,-1315.7,0.00020166,2]
[359269767,1745881834586,-503.66250798,0.00020166,2]
[359269768,1745881834595,-509.59714776,0.00020166,2]
[359269769,1745881834605,-500.0,0.00020166,2]
[359269770,1745881834615,-400.0,0.00020166,2]
[359269771,1745881834624,-945.14,0.00020166,2]
[359269772,1745881834634,-400.0,0.00020166,2]
[359269773,1745881834643,-400.0,0.00020166,2]
[359269774,1745881834653,-400.0,0.00020166,2]
[359269775,1745881834663,-400.0,0.00020166,2]
[359269776,1745881834674,-400.0,0.00020166,2]
[359269777,1745881834686,-158.1365605,0.00020166,2]
[359269778,1745881834695,-732.34,0.00020166,2]
[359269779,1745881834705,-506.66396394,0.00020166,2]
[359269780,1745881834715,-400.0,0.00020166,2]
[359269781,1745881834726,-400.0,0.00020166,2]
[359269782,1745881834736,-400.0,0.00020166,2]
[359269783,1745881834746,-400.0,0.00020166,2]
[359269784,1745881834758,-400.0,0.00020166,2]
[359269785,1745881834769,-812.06,0.00020166,2]
[359269786,1745881834778,-400.0,0.00020166,2]
[359269787,1745881834788,-405.37,0.00020166,2]
[359269788,1745881834798,-400.0,0.00020166,2]
[359269789,1745881834808,-400.0,0.00020166,2]
[359269790,1745881834818,-400.0,0.00020166,2]
[359269791,1745881834828,-500.0,0.00020166,2]
[359269792,1745881834837,-400.0,0.00020166,2]
[359269793,1745881834847,-982.88,0.00020166,2]
[359269794,1745881834857,-500.0,0.00020166,2]
[359269795,1745881834867,-400.0,0.00020166,2]
[359269796,1745881834876,-400.0,0.00020166,2]
[359269797,1745881834886,-500.0,0.00020166,2]
[359269798,1745881834896,-507.50301327,0.00020166,2]
[359269799,1745881834906,-843.06,0.00020166,2]
[359269800,1745881834916,-908.46,0.00020166,2]
[359269801,1745881834926,-400.0,0.00020166,2]
[359269802,1745881834936,-400.0,0.00020166,2]
[359269803,1745881834946,-400.0,0.00020166,2]
[359269804,1745881834955,-1314.6,0.00020166,2]
[359269805,1745881834965,-400.0,0.00020166,2]
[359269806,1745881834975,-500.0,0.00020166,2]
[359269807,1745881834985,-400.0,0.00020166,2]
[359269808,1745881834994,-1867.25,0.00020166,2]
[359269809,1745881835004,-500.0,0.00020166,2]
[359269810,1745881835014,-500.0,0.00020166,2]
[359269811,1745881835024,-412.69,0.00020166,2]
[359269812,1745881835033,-400.0,0.00020166,2]
[359269813,1745881835044,-500.0,0.00020166,2]
[359269814,1745881835055,-400.0,0.00020166,2]
[359269815,1745881835065,-400.0,0.00020166,2]
[359269816,1745881835075,-468.43,0.00020166,2]
[359269817,1745881835084,-400.0,0.00020166,2]
[359269818,1745881835093,-400.0,0.00020166,2]
[359269819,1745881835104,-500.0,0.00020166,2]
[359269820,1745881835114,-449.79,0.00020166,2]
[359269821,1745881835123,-500.0,0.00020166,2]
[359269822,1745881835132,-400.0,0.00020166,2]
[359269823,1745881835142,-503.91348231,0.00020166,2]
[359269824,1745881835151,-547.48,0.00020166,2]
[359269825,1745881835160,-453.55,0.00020166,2]
[359269826,1745881835170,-400.0,0.00020166,2]
[359269827,1745881835179,-400.0,0.00020166,2]
[359269828,1745881835189,-521.19,0.00020166,2]
[359269829,1745881835198,-500.0,0.00020166,2]
[359269830,1745881835207,-400.0,0.00020166,2]
[359269831,1745881835217,-500.0,0.00020166,2]
[359269832,1745881835226,-1634.38,0.00020166,2]
[359269833,1745881835235,-500.0,0.00020166,2]
[359269834,1745881835244,-500.0,0.00020166,2]
[359269835,1745881835253,-400.0,0.00020166,2]
[359269836,1745881835263,-500.0,0.00020166,2]
[359269837,1745881835272,-501.31819858,0.00020166,2]
[359269838,1745881835281,-400.0,0.00020166,2]
[359269839,1745881835290,-500.0,0.00020166,2]
[359269840,1745881835299,-400.0,0.00020166,2]
[359269841,1745881835308,-558.63,0.00020166,2]
[359269842,1745881835317,-500.0,0.00020166,2]
[359269843,1745881835326,-400.0,0.00020166,2]
[359269844,1745881835336,-400.0,0.00020166,2]
[359269845,1745881835346,-400.0,0.00020166,2]
[359269846,1745881835355,-394.1062447,0.00020166,2]
[359269847,1745881835364,-400.0,0.00020166,2]
[359269848,1745881835374,-400.0,0.00020166,2]
[359269849,1745881835383,-400.0,0.00020166,2]
[359269850,1745881835392,-200.0,0.00020166,2]
[359269851,1745881835402,-619.38,0.00020166,2]
[359269852,1745881835411,-677.02,0.00020166,2]
[359269853,1745881835421,-400.0,0.00020166,2]
[359269854,1745881835430,-400.0,0.00020166,2]
[359269855,1745881835439,-400.0,0.00020166,2]
[359269856,1745881835448,-400.0,0.00020166,2]
[359269857,1745881835457,-400.0,0.00020166,2]
[359269858,1745881835466,-500.0,0.00020166,2]
[359269859,1745881835475,-400.0,0.00020166,2]
[359269860,1745881835484,-400.0,0.00020166,2]
[359269861,1745881835493,-200.0,0.00020166,2]
[359269862,1745881835503,-500.0,0.00020166,2]
[359269863,1745881835512,-500.0,0.00020166,2]
[359269864,1745881835521,-400.0,0.00020166,2]
[359269865,1745881835530,-400.0,0.00020166,2]
[359269866,1745881835539,-400.0,0.00020166,2]
[359269867,1745881835549,-400.0,0.00020166,2]
[359269868,1745881835558,-400.0,0.00020166,2]
[359269869,1745881835567,-500.0,0.00020166,2]
[359269870,1745881835577,-400.0,0.00020166,2]
[359269871,1745881835586,-400.0,0.00020166,2]
[359269872,1745881835595,-500.0,0.00020166,2]
[359269873,1745881835604,-504.34710764,0.00020166,2]
[359269874,1745881835613,-500.0,0.00020166,2]
[359269875,1745881835622,-889.42,0.00020166,2]
[359269876,1745881835631,-500.0,0.00020167,2]
[359269877,1745881835641,-500.0,0.00020167,2]
[359269878,1745881835650,-479.01,0.00020167,2]
[359269879,1745881835659,-400.0,0.00020167,2]
[359269880,1745881835668,-400.0,0.00020167,2]
[359269881,1745881835681,-400.0,0.00020167,2]
[359269882,1745881835690,-400.0,0.00020167,2]
[359269883,1745881835699,-732.41,0.00020167,2]
[359269884,1745881835709,-400.0,0.00020167,2]
[359269885,1745881835718,-400.0,0.00020167,2]
[359269886,1745881835727,-400.0,0.00020167,2]
[359269887,1745881835737,-660.46,0.00020167,2]
[359269888,1745881835747,-400.0,0.00020167,2]
[359269889,1745881835756,-400.0,0.00020167,2]
[359269890,1745881835766,-400.0,0.00020167,2]
[359269891,1745881835776,-400.0,0.00020167,2]
[359269892,1745881835785,-400.0,0.00020167,2]
[359269893,1745881835796,-1401.24,0.00020167,2]
[359269894,1745881835806,-400.0,0.00020167,2]
[359269895,1745881835815,-204.29180889,0.00020167,2]
[359269896,1745881835824,-400.0,0.00020167,2]
[359269897,1745881835834,-711.61,0.00020167,2]
[359269898,1745881835844,-400.0,0.00020167,2]
[359269899,1745881835853,-400.0,0.00020167,2]
[359269900,1745881835863,-400.0,0.00020167,2]
[359269901,1745881835872,-400.0,0.00020167,2]
[359269902,1745881835882,-400.0,0.00020167,2]
[359269903,1745881835891,-500.0,0.00020167,2]
[359269904,1745881835901,-400.0,0.00020167,2]
[359269905,1745881835912,-400.0,0.00020167,2]
[359269906,1745881835922,-400.0,0.00020167,2]
[359269907,1745881835932,-400.0,0.00020167,2]
[359269908,1745881835942,-575.64,0.00020167,2]
[359269909,1745881835952,-517.04,0.00020167,2]
[359269910,1745881835962,-400.0,0.00020167,2]
[359269911,1745881835973,-400.0,0.00020167,2]
[359269912,1745881835983,-400.0,0.00020167,2]
[359269913,1745881835994,-636.86,0.00020167,2]
[359269914,1745881836003,-400.0,0.00020167,2]
[359269915,1745881836013,-400.0,0.00020167,2]
[359269916,1745881836023,-2780.42,0.00020167,2]
[359269917,1745881836032,-500.0,0.00020167,2]
[359269918,1745881836042,-435.77,0.00020167,2]
[359269919,1745881836051,-1862.66,0.00020167,2]
[359269920,1745881836060,-400.0,0.00020167,2]
[359269921,1745881836069,-1082.86,0.00020167,2]
[359269922,1745881836078,-400.0,0.00020167,2]
[359269923,1745881836087,-400.0,0.00020167,2]
[359269924,1745881836096,-400.0,0.00020167,2]
[359269925,1745881836106,-400.0,0.00020167,2]
[359269926,1745881836115,-482.41,0.00020167,2]
[359269927,1745881836125,-400.0,0.00020167,2]
[359269928,1745881836134,-400.0,0.00020167,2]
[359269929,1745881836143,-400.0,0.00020167,2]
[359269930,1745881836152,-4687.26,0.00020167,2]
[359269931,1745881836161,-400.0,0.00020167,2]
[359269932,1745881836170,-179.51202711,0.00020167,2]
[359269933,1745881836180,-500.0,0.00020167,2]
[359269934,1745881836189,-400.0,0.00020167,2]
[359269935,1745881836199,-2496.76,0.00020167,2]
[359269936,1745881836209,-534.9,0.00020167,2]
[359269937,1745881836218,-888.72,0.00020167,2]
[359269938,1745881836228,-1476.58,0.00020167,2]
[359269939,1745881836238,-645.27,0.00020167,2]
[359269940,1745881836249,-400.0,0.00020167,2]
[359269941,1745881836259,-400.0,0.00020167,2]
[359269942,1745881836268,-500.0,0.00020167,2]
[359269943,1745881836277,-400.0,0.00020167,2]
[359269944,1745881836286,-400.0,0.00020167,2]
[359269945,1745881836295,-400.0,0.00020167,2]
[359269946,1745881836305,-638.81,0.00020167,2]
[359269947,1745881836314,-668.26,0.00020167,2]
[359269948,1745881836323,-500.0,0.00020167,2]
[359269949,1745881836332,-400.0,0.00020167,2]
[359269950,1745881836341,-843.15,0.00020167,2]
[359269951,1745881836351,-477.68,0.00020167,2]
[359269952,1745881836360,-400.0,0.00020167,2]
[359269953,1745881836369,-500.0,0.00020173,2]
[359269954,1745881836379,-500.0,0.00020173,2]
[359269955,1745881836389,-500.0,0.00020173,2]
[359269956,1745881836399,-500.0,0.00020173,2]
[359269957,1745881836408,-300.0,0.00020173,2]
[359269958,1745881836417,-510.49861526,0.00020173,2]
[359269959,1745881836427,-500.0,0.00020173,2]
[359269960,1745881836435,-608.88555303,0.00020173,2]
[359269961,1745881836445,-500.0,0.00020173,2]
[359269962,1745881836454,-505.33217015,0.0002026,2]
[359269963,1745881836464,-507.13631204,0.0002026,2]
[359269964,1745881836473,-500.0,0.0002026,2]
[359269965,1745881836483,-500.0,0.0002026,2]
[359269966,1745881836492,-500.0,0.0002026,2]
[359269967,1745881836503,-500.0,0.0002026,2]
[359269968,1745881836513,-500.0,0.0002026,2]
[359269969,1745881836523,-500.0,0.0002026,2]
[359269970,1745881836532,-506.25280131,0.0002026,2]
[359269971,1745881836542,-400.0,0.0002026,2]
[359269972,1745881836552,-400.0,0.0002026,2]
[359269973,1745881836562,-500.0,0.0002026,2]
[359269974,1745881836571,-400.0,0.0002026,2]
[359269975,1745881836580,-400.0,0.0002026,2]
[359269976,1745881836590,-400.0,0.0002026,2]
[359269977,1745881836599,-500.0,0.0002026,2]
[359269978,1745881836608,-400.0,0.0002026,2]
[359269979,1745881836618,-501.05278398,0.0002026,2]
[359269980,1745881836627,-400.0,0.0002026,2]
[359269981,1745881836637,-500.0,0.0002026,2]
[359269982,1745881836646,-361.06587438,0.0002026,2]
[359269983,1745881836656,-400.0,0.0002026,2]
[359269984,1745881836665,-400.0,0.0002026,2]
[359269985,1745881836680,-400.0,0.0002026,2]
[359269986,1745881836689,-500.0,0.0002026,2]
[359269987,1745881836698,-400.0,0.0002026,2]
[359269988,1745881836708,-511.73963868,0.0002026,2]
[359269989,1745881836718,-500.0,0.0002026,2]
[359269990,1745881836727,-400.0,0.0002026,2]
[359269991,1745881836736,-500.0,0.0002026,2]
[359269992,1745881836745,-500.0,0.0002026,2]
[359269993,1745881836755,-500.0,0.0002026,2]
[359269994,1745881836764,-500.0,0.0002026,2]
[359269995,1745881836773,-500.0,0.0002026,2]
[359269996,1745881836783,-500.0,0.0002026,2]
[359269997,1745881836793,-500.0,0.0002026,2]